Cogmind - Beta 16 @@@ ROGUE MODE // 2025.12.23 @ 19:07:52 Player: TheGamingJasper Result: Self-destructed Performance ------------- Evolutions (1) 500 Regions Visited (3) 600 Robots Destroyed (9) 45 Value Destroyed (207) 207 Prototype IDs (2) 40 Alien Tech Used (0) 0 Bonus (0) 0 TOTAL SCORE: 1392 Bonus ------- None Cogmind --------- Core Integrity 245/400 Matter 300/300 Energy 250/250 System Corruption 0% Temperature Cool (6) Movement Core (150) Ox2 Location -9/Storage Parts ------- > --- POWER (1) -------- Ion Engine > --- PROPULSION (4) --- (None) > --- UTILITY (2) ------ Terrain Scanner Terrain Scan Processor > --- WEAPON (2) ------- Flail > --- INVENTORY (5) ---- Ion Engine Weight Redist. System ECM Suite Grenade Launcher Peak State ------------ > --- POWER ------------ Ion Engine > --- PROPULSION ------- Flight Unit Flight Unit Flight Unit > --- UTILITY ---------- Terrain Scanner Terrain Scan Processor > --- WEAPON ----------- Assault Rifle Light Assault Rifle > --- INVENTORY -------- Ion Engine ECM Suite Grenade Launcher [Rating: 9] Favorites ----------- Power Ion Engine Engine Ion Engine Propulsion Flight Unit Leg Aluminum Leg Flight Unit Flight Unit Utility Small Storage Unit Device Terrain Scanner Storage Small Storage Unit Processor Terrain Scan Processor Weapon Assault Rifle Ballistic Gun Assault Rifle Impact Weapon Flail Build | -11 -10 -9 -9 ------- Run | Yrd Mat Mat Sto Slots Evolved 2 | . . 2 . Power . | . . . . Propulsion 2 | . . 2 . Utility . | . . . . Weapon . | . . . . Parts Attached 12 | 6 2 4 . Power 1 | 1 . . . Engine 1 | 1 . . . Core . | . . . . Reactor . | . . . . Propulsion 5 | 2 2 1 . Treads . | . . . . Leg 2 | 2 . . . Wheel . | . . . . Hover . | . . . . Flight 3 | . 2 1 . Utility 3 | 1 . 2 . Device 1 | . . 1 . Storage 1 | 1 . . . Processor 1 | . . 1 . Hackware . | . . . . Protection . | . . . . Artifact . | . . . . Weapon 3 | 2 . 1 . Energy Gun . | . . . . Energy Cannon . | . . . . Ballistic Gun 2 | 2 . . . Ballistic Cannon . | . . . . Launcher . | . . . . Special Weapon . | . . . . Impact Weapon 1 | . . 1 . Slashing Weapon . | . . . . Piercing Weapon . | . . . . Special Melee Weapon . | . . . . Unidentified Prototypes . | . . . . Parts Lost 3 | . . 1 2 Power . | . . . . Propulsion 3 | . . 1 2 Utility . | . . . . Weapon . | . . . . Highest Loss Streak 2 | . . 1 2 To Critical Strikes . | . . . . Average Backups 3 | 1 2 3 4 Power . | . 1 1 1 Propulsion . | . . . . Utility 1 | . . 1 2 Weapon . | . . 1 1 Tool/Special . | . . . . Unused Backups 4 | . . . 4 Power 1 | . . . 1 Propulsion . | . . . . Utility 2 | . . . 2 Weapon 1 | . . . 1 Tool/Special . | . . . . Average Slot Usage (%) 79 | . 85 80 56 Engine 12 | . 14 11 11 Leg 11 | . 21 . . Flight 13 | . 6 27 12 Device 4 | . . 9 11 Storage 7 | . 14 . . Processor 4 | . . 9 11 Ballistic Gun 21 | . 28 20 . Impact Weapon 1 | . . . 11 Peak Build Rating 9 | 6 6 9 8 Average Rating 6 | 4 6 8 7 On Entrance 5 | . 6 6 8 Avg Prop Armor Cover (%) . | . . . . Naked Turns . | . . . . Heaviest Build 13 | 13 13 9 8 Greatest Support 20 | 20 20 12 8 Greatest Overweight (x) 3 | . 3 1 2 Average Overweight (x) . | . . . 1 Largest Inventory Capacity 8 | 8 8 8 5 Average Capacity 6 | 7 8 5 5 Most Carried 5 | 5 5 5 4 Average Carried 3 | 1 2 3 4 Final Capacity 8 | 8 8 5 5 Final Carried 5 | 1 5 4 4 Class Distribution -------------------- 100% | Mutant Dominant Class ---------------- Mutant | -10/Materials Mutant | -9/Materials Mutant | -9/Storage Resources | -11 -10 -9 -9 ----------- Run | Yrd Mat Mat Sto Matter Collected 426 | 205 143 78 . Remotely . | . . . . Salvage Created 346 | . 148 164 34 Parts 25 | . 12 11 2 Haulers Intercepted 1 | . . 1 . Recyclers Shooed 1 | . 1 . . Parts Field Recycled . | . . . . Retrieved Matter . | . . . . Parts Self-Destructed . | . . . . Prevented . | . . . . Parts Restored . | . . . . Kills | -11 -10 -9 -9 ------- Run | Yrd Mat Mat Sto Combat Hostiles Destroyed 7 | . 4 2 1 Melee 1 | . . . 1 Guns 6 | . 4 2 . Classes Destroyed 5 | . 3 2 . Hauler 1 | . . 1 . Recycler 1 | . 1 . . Swarmer 3 | . 3 . . Grunt 1 | . 1 . . Sentry 3 | . . 2 1 Best Kill Streak 4 | . 4 2 1 Combat Bots Only 3 | . 3 2 1 Max Kills in Single Turn 1 | . 1 1 1 Gunslinging . | . . . . Exploded . | . . . . Melee 1 | . . . 1 Uniques/NPCs Destroyed . | . . . . Combat | -11 -10 -9 -9 -------- Run | Yrd Mat Mat Sto Hostile Shots Fired 48 | . 21 14 13 Missed 8 | . 3 4 1 Hits 40 | . 18 10 12 Projectile 40 | . 18 10 12 AOE 1 | . . . 1 Critical Strikes 2 | . 1 1 . Damage Taken 549 | . 157 137 255 Core 209 | . 54 54 101 Absorbed by Shields . | . . . . Core Remaining (%) 89 | 100 78 . . Volleys Fired 30 | . 17 13 . Largest 2 | . 2 2 . Hottest 40 | . 40 40 . Shots Fired 60 | . 34 26 . Gun 60 | . 34 26 . Cannon . | . . . . Launcher . | . . . . Special . | . . . . Kinetic 60 | . 34 26 . Thermal . | . . . . Explosive . | . . . . Electromagnetic . | . . . . Robot Hit Streak 12 | . 7 12 . Robot Miss Streak 3 | . 3 2 . Penetration Max . | . . . . Secondary Targets . | . . . . Shots Hit Robots 49 | . 21 21 7 Core Hits 17 | . 9 7 1 Critical Kills . | . . . . Critical Parts Destroyed 1 | . . . 1 Critical Strikes 1 | . . . 1 Smash 1 | . . . 1 Melee Attacks 8 | . . . 8 Impact 8 | . . . 8 Slashing . | . . . . Piercing . | . . . . Sneak Attacks . | . . . . Combat Hostiles . | . . . . Follow-up Attacks . | . . . . Damage Inflicted 572 | . 213 210 149 Guns 423 | . 213 210 . Cannons . | . . . . Explosions . | . . . . Melee 149 | . . . 149 Ramming . | . . . . Kinetic 423 | . 213 210 . Thermal . | . . . . Explosive . | . . . . Electromagnetic . | . . . . Impact 149 | . . . 149 Slashing . | . . . . Piercing . | . . . . Highest Corruption . | . . . . Average Corruption . | . . . . Corruption Purged . | . . . . Corruption Blocked . | . . . . Overload Shots . | . . . . Overflow Damage 13 | . . . 13 Projectiles . | . . . . Explosions . | . . . . Melee 13 | . . . 13 Knockbacks . | . . . . Impact . | . . . . Kinetic . | . . . . Secondary . | . . . . Self-Inflicted Damage . | . . . . Shots . | . . . . Rammed . | . . . . Targets Rammed . | . . . . Kicked . | . . . . Crushed . | . . . . Highest Temperature 26 | . 20 26 . Average Temperature 11 | . 9 14 . Received Heat Transfer 144 | . 30 63 51 Siege Activations . | . . . . Martial Activations . | . . . . Shielding Activations . | . . . . Robots Disrupted . | . . . . Combat Hostiles . | . . . . Robots Corrupted . | . . . . Combat Hostiles . | . . . . Parts Fried . | . . . . Impact Corruptions 1 | . . . 1 Robots Melted . | . . . . Combat Hostiles . | . . . . Parts Melted . | . . . . Heat Transferred . | . . . . Parts Sabotaged . | . . . . Parts Stolen . | . . . . Parts Stripped . | . . . . Power Chain Reactions . | . . . . Alert | -11 -10 -9 -9 ------- Run | Yrd Mat Mat Sto Maximum Alert Level . | . . . . Low Security (%) 100 | 100 100 100 100 Level 1 . | . . . . Level 2 . | . . . . Level 3 . | . . . . Level 4 . | . . . . Level 5 . | . . . . High Security . | . . . . Max Security . | . . . . Peak Influence 65 | . 65 60 30 Initial 22 | . . 22 8 Average 15 | . 15 23 9 Influence Increases 202 | . 105 67 30 Destroy 0b10 Robot/C 140 | . 80 40 20 Destroy 0b10 Robot/NC 10 | . 5 5 . Destroy Leader 52 | . 20 22 10 Influence Decreases 182 | . 50 102 30 Entered New Map 45 | . . 33 12 Time Decay 137 | . 50 69 18 Squads Dispatched 1 | . 1 . . Investigation 1 | . 1 . . Extermination . | . . . . Reinforcement . | . . . . Assault . | . . . . Garrison . | . . . . Intercept . | . . . . Searches Triggered . | . . . . Construction Impeded . | . . . . Haulers Reinforced . | . . . . Active Scanning Responses . | . . . . Cargo Convoy Interrupts . | . . . . Stealth | -11 -10 -9 -9 --------- Run | Yrd Mat Mat Sto Distress Signals . | . . . . Communications Jammed . | . . . . Distress Signals . | . . . . Times Spotted 10 | . 4 3 3 Peak Tracking Total 3 | . 3 2 2 Tactical Retreats . | . . . . Traps | -11 -10 -9 -9 ------- Run | Yrd Mat Mat Sto Traps Triggered 1 | . 1 . . Indirectly . | . . . . Trap Hack Attempts . | . . . . Triggered . | . . . . Disarmed . | . . . . Reprogrammed . | . . . . Reused . | . . . . Traps Extracted . | . . . . Installed . | . . . . Triggered . | . . . . Machines | -11 -10 -9 -9 ---------- Run | Yrd Mat Mat Sto Machines Disabled . | . . . . Max in Single Turn . | . . . . Machines Repaired . | . . . . Machines Dismantled . | . . . . Machines Sabotaged . | . . . . Overloaded Fab Kills . | . . . . Hacking | -11 -10 -9 -9 --------- Run | Yrd Mat Mat Sto Machines Accessed 2 | . . 2 . Terminals 1 | . . 1 . Fabricators . | . . . . Repair Stations . | . . . . Recycling Units . | . . . . Scanalyzers 1 | . . 1 . Garrison Access . | . . . . Total Hacks 3 | . . 3 . Successful 1 | . . 1 . Failed 2 | . . 2 . Catastrophic . | . . . . Database Lockouts . | . . . . Manual . | . . . . Terminals 2 | . . 2 . Fabricators . | . . . . Repair Stations . | . . . . Recycling Units . | . . . . Scanalyzers 1 | . . 1 . Garrison Access . | . . . . Terminal Hacks 1 | . . 1 . Prototype ID Bank 1 | . . 1 . Fabricator Hacks . | . . . . Repair Station Hacks . | . . . . Recycling Unit Hacks . | . . . . Scanalyzer . | . . . . Garrison Access Hacks . | . . . . Unauthorized Hacks . | . . . . Terminals . | . . . . Fabricators . | . . . . Repair Stations . | . . . . Recycling Units . | . . . . Scanalyzers . | . . . . Garrison Access . | . . . . Data Cores Recovered . | . . . . Used . | . . . . Hacking Detections 2 | . . 2 . Full Trace Events . | . . . . Feedback Events . | . . . . Feedback Blocked . | . . . . Robot Schematics Acquired . | . . . . Robots Built . | . . . . Authchips . | . . . . Time . | . . . . Total Robot Build Rating . | . . . . Part Schematics Acquired . | . . . . Parts Built . | . . . . Authchips . | . . . . Time . | . . . . Total Part Build Rating . | . . . . Part Studies Acquired . | . . . . Parts Repaired . | . . . . Time . | . . . . Parts Recycled . | . . . . Recycled Matter . | . . . . Retrieved Matter . | . . . . Retrieved Components . | . . . . Parts Scanalyzed . | . . . . Part Schematics Acquired . | . . . . Parts Damaged . | . . . . Bothacking | -11 -10 -9 -9 ------------ Run | Yrd Mat Mat Sto Used RIF Installer . | . . . . Robots Hacked . | . . . . Non-combat . | . . . . Combat . | . . . . Robot Hacks Applied . | . . . . Relay Couplers Released . | . . . . Fabnet Peak Effective % . | . . . . Robots Rewired . | . . . . Allies Hacked . | . . . . Hacks Repelled . | . . . . Allies | -11 -10 -9 -9 -------- Run | Yrd Mat Mat Sto Total Allies . | . . . . Largest Group . | . . . . Highest-Rated Group . | . . . . Highest-Rated Ally . | . . . . Total Orders . | . . . . Ally Attacks . | . . . . Total Damage . | . . . . Kills . | . . . . Allies Corrupted . | . . . . Allies Melted . | . . . . Intel | -11 -10 -9 -9 ------- Run | Yrd Mat Mat Sto Active Infowar (turns) 226 | . . 155 71 Terrain 226 | . . 155 71 Robot Analysis Total . | . . . . Derelict Logs Recovered . | . . . . Drone Launches . | . . . . Drone Recoveries . | . . . . Exploration | -11 -10 -9 -9 ------------- Run | Yrd Mat Mat Sto Turns Passed 612 | 62 309 170 71 Spaces Moved 441 | 44 195 180 22 Core 31 | 18 . . 13 Treads . | . . . . Legs 184 | 26 158 . . Wheels . | . . . . Hover . | . . . . Flight 226 | . 37 180 9 Fastest Speed 34 | 50 117 34 37 Average Speed 91 | 91 120 57 103 Slowest Speed 290 | 120 290 117 150 Overloaded Moves . | . . . . Propulsion Burnouts . | . . . . Robots Hopped 1 | . . 1 . Potential Cave-ins . | . . . . Cave-ins Triggered . | . . . . Exploration Rate (%) 16 | 4 31 22 9 Regions Visited 3 Branch Regions 1 Pre-discovered Areas . | . . . . Known Exits Taken . | . . . . Unknown Exits Taken 3 | 1 1 1 . Scrap Searched . | . . . . Spaces Dug . | . . . . Terrain Destroyed . | . . . . Melee . | . . . . Projectile . | . . . . AOE . | . . . . Terrain Rammed . | . . . . Walls Destroyed . | . . . . Machines Disabled . | . . . . Actions | -11 -10 -9 -9 --------- Run | Yrd Mat Mat Sto Total 583 | 65 238 222 58 Wait 76 | 10 17 21 28 Move 436 | 43 194 177 22 Hop 1 | . . 1 . Pick Up 15 | 6 6 3 . Fast Attach 1 | 1 . . . Attach 9 | 5 . 4 . Detach . | . . . . Swap 2 | . 2 . . Drop 5 | . 2 3 . Fire 30 | . 17 13 . Melee 8 | . . . 8 Ram . | . . . . Kick . | . . . . Crush . | . . . . Escape Stasis . | . . . . Rewire . | . . . . Trap . | . . . . Miscellaneous . | . . . . Route ------- -11/Scrapyard -10/Materials -9/Materials -9/Storage History --------- Turn | Location | Event 2 | -11/Scrapyard | Met Revision 17 11 | -11/Scrapyard | Discovered new exit (range 16) 63 | -11/Scrapyard | Entered Materials 135 | -10/Materials | Discovered new exit (range 10) 324 | -10/Materials | Build established: Mutant 372 | -10/Materials | Entered another Materials area 372 | -9/Materials | Evolved 2 slots: Propulsion x2 436 | -9/Materials | Discovered new exit (range 5) 542 | -9/Materials | Entered Storage 613 | -9/Storage | Self-destructed Last Messages --------------- Acquired Flail. Connecting with Terminal... >>Prototypes Downloading prototype IDs... Cld. Ion Engine Adv. Beam Cannon LOCATION=UNKNOWN GOAL=ESCAPE Flight Unit destroyed. Compression Vault explodes. Repair Station disabled. Backup Power I tumbles out of repair station. Backup Laser I tumbles out of repair station. Y-45 Defender suffers critical hit (Smash). Destroyed Heat Sink. Y-45 Defender system corrupted by crushing effect. Y-45 Defender misfires. Y-45 Defender destroyed. Map ----- +----------------------------------------------------+ | ?????????????????????????????????????????????????? | | ?????????????????????????????????????????????????? | | ?????????????????????????????????????????????????? | | ?????????????????????????????????????????????????? | | ?????????????????????????????????????????????????? | | ?????????????????????????????????????????????????? | | ?????????????????????????????????????????????????? | | ?????????????????????????????????????????????????? | | ?????????????????????????????????????????????????? | | ?????????????????????????????????????????????????? | | ?????????????????????????????????????????????????? | | ?????????????????????????????????????????????????? | | ?????????????????????????????????????????????????? | | ??????????????????????????????????#??????????????? | | ????????????????????????????????#??#???##????????? | | ????????????????????????#???########?#?##?#??????? | | ??????????????????????#???????#???#?????????#????? | | ?????????????????????????###?##??##?#?#??#???????? | | ???????????????????#??#??##?????#???###??#???#???? | | ????????????????????????????##??#??#??##???#?????? | | ????????????????????????#???#?#?????#####??###?#?? | | ????????????????#####??#??#?#?????#####??###??##?? | | ???????????###### #############"T"######??#?#? | | ?????????? #??????? | | ?????????? ###??##? | | ??????????g g @ = ##???##? | | ????????????????# ########## % #########? | | ???????????????#?????###?##??# [ ###???# | | ????????????????????? ? ? ####""" """ ##????? | | ?????????????????????""? ?##?#"R* """ #???#?? | | ???????????????????????? ???#"" [ """ ##??#?? | | ?????????????? ???????"? ??#?#^ [ #?????? | | ?????????????????????? #?## ###???? | | ?????????????????????#??#?##?###############?###?? | | | | | | | | | | | | | | | | | | | | | | | | | | | | | | | | | +----------------------------------------------------+ Best States ------------- Heat Dissipation 28 Energy Generation 10 Energy Capacity 250 Matter Stores 300 Matter Capacity 300 Sight Range 16 Terrain Scan Range 14 Terrain Scan Density 85 Evasion (%) 63 Item Schematics ----------------- None Robot Schematics ------------------ None Fabricated ------------ Nothing Repaired ---------- Nothing Studied --------- None Alien Tech Used ----------------- None Achievements -------------- None Challenges ------------ None Game ------ Seed CooledGunMediator Manual? 0 Play Time 00:07:01 Cumulative 36.4 hours Start 2025.12.23 @ 19:01:23 End 2025.12.23 @ 19:07:52 Sessions 1 Manual Loads 0 Difficulty Rogue Special Mode None Game No. 64 Rogue 63 Adventurer 1 Explorer 0 Win Type - Total 0 Types 0/0/0/0/0/0/0/0/0/0 Lore% 11 Gallery% 31 Achievement% 21 Wizard Run 0 Options --------- Layout 1 ASCII 0 Keyboard 0 Movement Arrows Keybinds 0 Fullscreen 1 Font 24/Smallcaps Map View 50x35 Zoom Use 0% Tactical HUD 0 Map Filters NONE Filters NONE Steam 1 RUN: f4e96f57-584f-42bc-b639-2f96dd78ae66